fUST/lending_fUST_20250902
["ID","MTS","AMOUNT","RATE_DAILY","PERIOD"]
[382823534,1756744258499,-597.76,0.00015342,2]
[382823537,1756744258509,-480.0,0.00015342,2]
[382823539,1756744258519,-480.0,0.00015342,2]
[382823541,1756744258529,-480.0,0.00015342,2]
[382823543,1756744258539,-480.0,0.00015342,2]
[382823544,1756744258548,-480.0,0.00015342,2]
[382823546,1756744258557,-480.0,0.00015342,2]
[382823548,1756744258567,-480.0,0.00015342,2]
[382823550,1756744258576,-480.0,0.00015342,2]
[382823552,1756744258585,-602.69,0.00015342,2]
[382823555,1756744258595,-519.62,0.00015342,2]
[382823556,1756744258604,-480.0,0.00015342,2]
[382823558,1756744258614,-480.0,0.00015342,2]
[382823561,1756744258624,-480.0,0.00015342,2]
[382823563,1756744258634,-524.62,0.00015342,2]
[382823565,1756744258643,-480.0,0.00015342,2]
[382823567,1756744258657,-480.0,0.00015342,2]
[382823569,1756744258670,-827.02,0.00015342,2]
[382823572,1756744258683,-740.47,0.00015342,2]
[382823574,1756744258695,-480.0,0.00015342,2]
[382823576,1756744258706,-480.0,0.00015342,2]
[382823579,1756744258720,-600.11,0.00015342,2]
[382823581,1756744258732,-628.88,0.00015342,2]
[382823583,1756744258745,-480.0,0.00015342,2]
[382823585,1756744258758,-480.0,0.00015342,2]
[382823587,1756744258771,-480.0,0.00015342,2]
[382823589,1756744258783,-480.0,0.00015342,2]
[382823592,1756744258796,-637.89,0.00015342,2]
[382823594,1756744258810,-480.0,0.00015342,2]
[382823596,1756744258821,-480.0,0.00015342,2]
[382823598,1756744258834,-480.0,0.00015342,2]
[382823601,1756744258846,-524.86,0.00015342,2]
[382823603,1756744258858,-480.0,0.00015342,2]
[382823605,1756744258871,-440.49794142,0.00015342,2]
[382823608,1756744258888,-39.50205858,0.00015342,2]
[382823610,1756744258900,-480.0,0.00015342,2]
[382823612,1756744258910,-480.0,0.00015342,2]
[382823614,1756744258921,-480.0,0.00015342,2]
[382823617,1756744258933,-679.02,0.00015342,2]
[382823619,1756744258945,-480.0,0.00015342,2]
[382823621,1756744258959,-989.05,0.00015342,2]
[382823624,1756744258972,-480.0,0.00015342,2]
[382823626,1756744258986,-480.0,0.00015342,2]
[382823628,1756744258999,-666.02,0.00015342,2]
[382823630,1756744259013,-480.0,0.00015342,2]
[382823633,1756744259026,-630.85856098,0.00015342,2]
[382823635,1756744259041,-127.34143902,0.00015342,2]
[382823637,1756744259051,-480.0,0.00015342,2]
[382823639,1756744259062,-480.0,0.00015342,2]
[382823642,1756744259076,-480.0,0.00015342,2]
[382823644,1756744259094,-660.28,0.00015342,2]
[382823646,1756744259109,-480.0,0.00015342,2]
[382823648,1756744259121,-660.95,0.00015342,2]
[382823651,1756744259132,-161.46713333,0.00015342,2]
[382823653,1756744259145,-480.0,0.00015342,2]
[382823655,1756744259157,-480.0,0.00015342,2]
[382823657,1756744259170,-575.14,0.00015342,2]
[382823660,1756744259181,-480.0,0.00015342,2]
[382823662,1756744259191,-409.39498672,0.00015342,2]
[382823664,1756744259202,-480.0,0.00015342,2]
[382823666,1756744259214,-480.0,0.00015342,2]
[382823668,1756744259225,-480.0,0.00015342,2]
[382823671,1756744259237,-480.0,0.00015342,2]
[382823673,1756744259248,-883.17,0.00015342,2]
[382823675,1756744259259,-622.37,0.00015342,2]
[382823677,1756744259270,-697.95,0.00015342,2]
[382823679,1756744259282,-480.0,0.00015342,2]
[382823681,1756744259293,-480.0,0.00015342,2]
[382823683,1756744259304,-32.62544092,0.00015342,2]
[382823848,1756744260923,-2189.36798684,0.00013809,2]
[382823957,1756744262241,-1723.52983642,0.00013397,2]
[382823959,1756744262252,-730.39142211,0.00013809,2]
[382823961,1756744262262,-3027.79050709,0.00013864,2]
[382823962,1756744262273,-643.87640413,0.00013919,2]
[382823964,1756744262283,-488.35455908,0.00015342,2]
[382823966,1756744262292,-809.03,0.00015342,2]
[382823969,1756744262303,-480.0,0.00015342,2]
[382823971,1756744262312,-490.3,0.00015342,2]
[382823972,1756744262322,-480.0,0.00015342,2]
[382823974,1756744262331,-823.25,0.00015342,2]
[382823976,1756744262340,-266.8986836,0.00015342,2]
[382823978,1756744262350,-529.02,0.00015342,2]
[382823980,1756744262359,-653.95,0.00015342,2]
[382823982,1756744262369,-455.57201186,0.00015342,2]
[382823984,1756744262378,-691.13,0.00015342,2]
[382823986,1756744262387,-480.0,0.00015342,2]
[382823988,1756744262397,-889.13,0.00015342,2]
[382823990,1756744262405,-550.96,0.00015342,2]
[382823992,1756744262415,-3291.17,0.00015342,2]
[382823994,1756744262424,-480.0,0.00015342,2]
[382823996,1756744262433,-980.91,0.00015342,2]
[382823998,1756744262443,-1435.73,0.00015342,2]
[382824000,1756744262452,-826.43,0.00015342,2]
[382824002,1756744262461,-711.94,0.00015342,2]
[382824004,1756744262470,-505.64,0.00015342,2]
[382824006,1756744262479,-480.0,0.00015342,2]
[382824008,1756744262488,-580.81,0.00015342,2]
[382824010,1756744262497,-1011.63,0.00015342,2]
[382824012,1756744262506,-735.35,0.00015342,2]
[382824014,1756744262516,-480.0,0.00015342,2]
[382824016,1756744262525,-620.15,0.00015342,2]
[382824018,1756744262534,-748.52,0.00015342,2]
[382824020,1756744262543,-987.13,0.00015342,2]
[382824022,1756744262553,-480.0,0.00015342,2]
[382824024,1756744262562,-480.0,0.00015342,2]
[382824026,1756744262571,-509.81,0.00015342,2]
[382824028,1756744262581,-742.54,0.00015342,2]
[382824030,1756744262590,-516.48,0.00015342,2]
[382824032,1756744262599,-692.45,0.00015342,2]
[382824033,1756744262609,-958.63,0.00015342,2]
[382824035,1756744262618,-480.0,0.00015342,2]
[382824037,1756744262627,-480.0,0.00015342,2]
[382824039,1756744262637,-7405.63,0.00015342,2]
[382824041,1756744262646,-2050.19,0.00015342,2]
[382824043,1756744262655,-944.77,0.00015342,2]
[382824045,1756744262664,-480.0,0.00015342,2]
[382824047,1756744262673,-480.0,0.00015342,2]
[382824049,1756744262683,-2111.22,0.00015342,2]
[382824051,1756744262692,-937.65,0.00015342,2]
[382824053,1756744262701,-480.0,0.00015342,2]
[382824055,1756744262710,-1042.95,0.00015342,2]
[382824057,1756744262719,-480.0,0.00015342,2]
[382824059,1756744262729,-4804.28,0.00015342,2]
[382824061,1756744262738,-799.55,0.00015342,2]
[382824063,1756744262748,-2331.89,0.00015342,2]
[382824065,1756744262757,-835.66,0.00015342,2]
[382824067,1756744262766,-860.55,0.00015342,2]
[382824069,1756744262775,-480.0,0.00015342,2]
[382824071,1756744262785,-817.93,0.00015342,2]
[382824073,1756744262794,-638.27,0.00015342,2]
[382824075,1756744262804,-1672.33,0.00015342,2]
[382824077,1756744262813,-480.0,0.00015342,2]
[382824079,1756744262823,-1015.15,0.00015342,2]
[382824081,1756744262832,-674.45,0.00015342,2]
[382824083,1756744262842,-193.88369437,0.00015342,2]
[382824085,1756744262851,-480.0,0.00015342,2]
[382824087,1756744262861,-577.98,0.00015342,2]
[382824089,1756744262870,-4235.96,0.00015342,2]
[382824091,1756744262881,-480.0,0.00015342,2]
[382824093,1756744262893,-480.0,0.00015342,2]
[382824095,1756744262902,-652.99,0.00015342,2]
[382824097,1756744262912,-480.0,0.00015342,2]
[382824099,1756744262921,-480.0,0.00015342,2]
[382824101,1756744262931,-1388.11,0.00015342,2]
[382824103,1756744262940,-480.0,0.00015342,2]
[382824105,1756744262949,-683.05,0.00015342,2]
[382824107,1756744262958,-491.99,0.00015342,2]
[382824108,1756744262967,-185.46046857,0.00015342,2]
[382824110,1756744262976,-597.56,0.00015342,2]
[382824112,1756744262986,-685.92,0.00015342,2]
[382824114,1756744262995,-2054.12,0.00015342,2]
[382824116,1756744263005,-657.34,0.00015342,2]
[382824119,1756744263015,-480.0,0.00015342,2]
[382824120,1756744263025,-480.0,0.00015342,2]
[382824123,1756744263035,-176.78317408,0.00015342,2]
[382824124,1756744263045,-480.0,0.00015342,2]
[382824126,1756744263055,-868.69,0.00015342,2]
[382824128,1756744263068,-683.94,0.00015342,2]
[382824130,1756744263083,-631.39,0.00015342,2]
[382824132,1756744263093,-1678.19,0.00015342,2]
[382824134,1756744263103,-937.14,0.00015342,2]
[382824137,1756744263114,-699.73,0.00015342,2]
[382824139,1756744263124,-1696.71,0.00015342,2]
[382824140,1756744263139,-480.0,0.00015342,2]
[382824143,1756744263150,-2278.92,0.00015342,2]
[382824145,1756744263160,-404.36120556,0.00015342,2]
[382824146,1756744263170,-575.95,0.00015342,2]
[382824148,1756744263179,-480.0,0.00015342,2]
[382824150,1756744263190,-507.82,0.00015342,2]
[382824152,1756744263200,-593.6,0.00015342,2]
[382824154,1756744263210,-480.0,0.00015342,2]
[382824156,1756744263220,-224.23320691,0.00015342,2]
[382824214,1756744263794,315.72,0.00012329,2]
[382825139,1756744686866,1065.8326299,0.0002739,120]
[382825164,1756745163037,3285.64572157,0.00012733,2]
[382825165,1756745163062,1298.63244213,0.00012733,2]
[382825277,1756745437738,-1200.78910934,0.00013282,2]
[382825278,1756745437748,-1537.94143041,0.00013552,2]
[382825279,1756745437760,-1200.0,0.00013595,2]
[382825280,1756745437770,-1200.0,0.00013596,2]
[382825281,1756745437779,-300.0,0.00013596,2]
[382825282,1756745437788,-300.0,0.00013596,2]
[382825283,1756745437798,-259.71487449,0.00013597,2]
[382825284,1756745437808,-500.0,0.00013597,2]
[382825285,1756745437817,-500.0,0.00013597,2]
[382825286,1756745437827,-500.0,0.00013597,2]
[382825287,1756745437836,-500.0,0.00013597,2]
[382825288,1756745437846,-500.0,0.00013597,2]
[382825289,1756745437856,-500.0,0.00013597,2]
[382825290,1756745437866,-500.0,0.00013597,2]
[382825291,1756745437876,-500.0,0.00013597,2]
[382825292,1756745437885,-500.0,0.00013597,2]
[382825293,1756745437897,-278.58294667,0.00013597,2]
[382825294,1756745437906,-500.0,0.00013597,2]
[382825295,1756745437915,-500.0,0.00013597,2]
[382825296,1756745437924,-438.2434944,0.00013597,2]
[382825297,1756745437933,-404.34922928,0.00013597,2]
[382825298,1756745437943,-500.0,0.00013597,2]
[382825300,1756745437955,-500.0,0.00013597,2]
[382825302,1756745438140,-311.07062331,0.00013597,2]
[382825303,1756745438152,-463.42143325,0.00013597,2]
[382825304,1756745438162,-500.0,0.00013597,2]
[382825305,1756745438172,-591.71225891,0.00013597,2]
[382825306,1756745438181,-500.0,0.00013597,2]
[382825307,1756745438191,-500.0,0.00013597,2]
[382825308,1756745438201,-500.0,0.00013597,2]
[382825309,1756745438210,-500.0,0.00013597,2]
[382825310,1756745438219,-500.0,0.00013597,2]
[382825311,1756745438229,-500.0,0.00013597,2]
[382825312,1756745438239,-500.0,0.00013597,2]
[382825313,1756745438248,-500.0,0.00013597,2]
[382825314,1756745438257,-500.0,0.00013597,2]
[382825315,1756745438267,-461.62957369,0.00013597,2]
[382825316,1756745438276,-500.0,0.00013597,2]
[382825317,1756745438286,-500.0,0.00013597,2]
[382825318,1756745438295,-500.0,0.00013597,2]
[382825319,1756745438305,-500.0,0.00013597,2]
[382825320,1756745438314,-500.0,0.00013597,2]
[382825321,1756745438325,-500.0,0.00013597,2]
[382825322,1756745438334,-500.0,0.00013597,2]
[382825323,1756745438343,-500.0,0.00013597,2]
[382825324,1756745438352,-550.0,0.00013597,2]
[382825325,1756745438362,-500.0,0.00013597,2]
[382825326,1756745438371,-500.0,0.00013597,2]
[382825327,1756745438381,-500.0,0.00013597,2]
[382825328,1756745438391,-272.01725825,0.00013597,2]
[382825329,1756745438401,-500.0,0.00013597,2]
[382825330,1756745438410,-356.05923294,0.00013597,2]
[382825331,1756745438420,-14198.99220202,0.00013598,2]
[382825332,1756745438436,-725.02279502,0.00013598,2]
[382825333,1756745438447,-15438.31647632,0.00013598,2]
[382825389,1756745440091,-268.0,0.00013598,2]
[382825626,1756745442874,-16840.45702669,0.00013598,2]
[382825628,1756745442885,-11305.999999,0.00013598,2]
[382825633,1756745442927,-8474.39459364,0.00013598,2]
[382825640,1756745442981,-31896.96364873,0.00013598,2]
[382825930,1756745446025,-6649.56351298,0.00013598,2]
[382825936,1756745446077,-371.45465753,0.00013598,2]
[382828098,1756746194597,5000.0,0.00012931,2]
[382828173,1756746638036,-1500.0,0.00013094,2]
[382828175,1756746638046,-1200.0,0.00013494,2]
[382828177,1756746638056,-1200.0,0.00013494,2]
[382828179,1756746638065,-132.65871364,0.00013496,2]
[382828841,1756746646198,-167.34128636,0.00013496,2]
[382828843,1756746646208,-300.0,0.00013496,2]
[382828845,1756746646217,-300.0,0.00013496,2]
[382828847,1756746646226,-995.68111698,0.00013497,5]
[382828849,1756746646235,-181.80041215,0.00013497,2]
[382828851,1756746646244,-500.0,0.00013497,2]
[382828853,1756746646254,-500.0,0.00013497,2]
[382828855,1756746646262,-500.0,0.00013497,2]
[382828857,1756746646272,-500.0,0.00013497,2]
[382828859,1756746646282,-500.0,0.00013497,2]
[382828861,1756746646292,-500.0,0.00013497,2]
[382828863,1756746646301,-500.0,0.00013497,2]
[382828865,1756746646310,-500.0,0.00013497,2]
[382828867,1756746646319,-379.24952573,0.00013497,2]
[382828869,1756746646328,-500.0,0.00013497,2]
[382828871,1756746646337,-500.0,0.00013497,2]
[382828873,1756746646346,-500.0,0.00013497,2]
[382828875,1756746646355,-500.0,0.00013497,2]
[382828877,1756746646364,-551.29217485,0.00013497,2]
[382828879,1756746646373,-500.0,0.00013497,2]
[382828881,1756746646382,-500.0,0.00013497,2]
[382828883,1756746646393,-500.0,0.00013497,2]
[382828885,1756746646402,-500.0,0.00013497,2]
[382828887,1756746646411,-500.0,0.00013497,2]
[382828889,1756746646420,-500.0,0.00013497,2]
[382828891,1756746646429,-25167.13025804,0.00013498,2]
[382828895,1756746646459,-344832.86974196,0.00013498,2]
[382828897,1756746646469,-1385.66848293,0.00013598,2]
[382828899,1756746646479,-151.0,0.000136,2]
[382828901,1756746646489,-11366.76240249,0.00013655,2]
[382828903,1756746646499,-500.0,0.00013673,2]
[382828905,1756746646508,-500.0,0.00013673,2]
[382828907,1756746646517,-481.76753524,0.00013673,2]
[382828909,1756746646527,-500.0,0.00013673,2]
[382828911,1756746646536,-500.0,0.00013673,2]
[382828913,1756746646545,-500.0,0.00013673,2]
[382828915,1756746646554,-500.0,0.00013673,2]
[382828917,1756746646563,-500.0,0.00013673,2]
[382828919,1756746646573,-500.0,0.00013673,2]
[382828921,1756746646582,-500.58297378,0.00013673,2]
[382828923,1756746646591,-500.0,0.00013673,2]
[382828925,1756746646601,-501.46562406,0.00013673,2]
[382828927,1756746646611,-502.2291435,0.00013673,2]
[382828929,1756746646620,-500.0,0.00013673,2]
[382828931,1756746646630,-504.06711361,0.00013673,2]
[382828933,1756746646639,-500.0,0.00013673,2]
[382828935,1756746646648,-500.0,0.00013673,2]
[382828937,1756746646658,-500.0,0.00013673,2]
[382828939,1756746646668,-500.0,0.00013673,2]
[382828941,1756746646678,-500.0,0.00013673,2]
[382828943,1756746646693,-500.0,0.00013673,2]
[382828966,1756746646909,-530.14184084,0.00013696,2]
[382828968,1756746646920,-160.0,0.00013696,2]
[382828970,1756746646930,-321.65739344,0.00013696,2]
[382828972,1756746646942,-846.10922732,0.00013696,2]
[382828974,1756746646951,-480.95494393,0.00013698,2]
[382828976,1756746646962,-480.0,0.00013698,2]
[382828978,1756746646971,-480.0,0.00013698,2]
[382828980,1756746646980,-480.0,0.00013698,2]
[382828982,1756746646990,-480.0,0.00013698,2]
[382828984,1756746647001,-480.0,0.00013698,2]
[382828986,1756746647010,-463.27514914,0.00013698,2]
[382828988,1756746647019,-483.92687742,0.00013698,2]
[382828990,1756746647028,-487.16011767,0.00013698,2]
[382828992,1756746647037,-487.68285855,0.00013698,2]
[382828994,1756746647046,-480.0,0.00013698,2]
[382828996,1756746647055,-480.0,0.00013698,2]
[382828998,1756746647064,-480.0,0.00013698,2]
[382829000,1756746647074,-480.0,0.00013698,2]
[382829002,1756746647084,-480.0,0.00013698,2]
[382829004,1756746647093,-480.0,0.00013698,2]
[382829006,1756746647102,-480.0,0.00013698,2]
[382829008,1756746647111,-480.0,0.00013698,2]
[382829010,1756746647121,-480.0,0.00013698,2]
[382829012,1756746647131,-480.0,0.00013698,2]
[382829014,1756746647141,-480.0,0.00013698,2]
[382829016,1756746647150,-480.0,0.00013698,2]
[382829018,1756746647159,-480.0,0.00013698,2]
[382829020,1756746647168,-480.0,0.00013698,2]
[382829022,1756746647178,-509.16,0.00013698,2]
[382829024,1756746647187,-480.0,0.00013698,2]
[382829026,1756746647198,-480.0,0.00013698,2]
[382829028,1756746647208,-490.08,0.00013698,2]
[382829030,1756746647217,-480.0,0.00013698,2]
[382829032,1756746647228,-480.0,0.00013698,2]
[382829034,1756746647237,-480.0,0.00013698,2]
[382829036,1756746647246,-545.44,0.00013698,2]
[382829038,1756746647255,-480.0,0.00013698,2]
[382829040,1756746647264,-567.58,0.00013698,2]
[382829042,1756746647274,-480.0,0.00013698,2]
[382829044,1756746647284,-530.2,0.00013698,2]
[382829046,1756746647293,-480.0,0.00013698,2]
[382829048,1756746647302,-480.0,0.00013698,2]
[382829050,1756746647311,-507.66214982,0.00013698,2]
[382829052,1756746647321,-480.0,0.00013698,2]
[382829054,1756746647330,-480.0,0.00013698,2]
[382829056,1756746647339,-480.0,0.00013698,2]
[382829058,1756746647348,-480.0,0.00013698,2]
[382829060,1756746647357,-480.0,0.00013698,2]
[382829062,1756746647366,-738.76,0.00013698,2]
[382829064,1756746647375,-480.92591555,0.00013698,2]
[382829066,1756746647386,-480.0,0.00013698,2]
[382829068,1756746647395,-500.0,0.00013698,2]
[382829070,1756746647405,-609.56,0.00013698,2]
[382829072,1756746647414,-480.0,0.00013698,2]
[382829074,1756746647423,-480.0,0.00013698,2]
[382829076,1756746647432,-520.1,0.00013698,2]
[382829078,1756746647441,-480.0,0.00013698,2]
[382829080,1756746647451,-480.0,0.00013698,2]
[382829082,1756746647460,-480.0,0.00013698,2]
[382829084,1756746647470,-480.0,0.00013698,2]
[382829086,1756746647479,-480.0,0.00013698,2]
[382829088,1756746647488,-480.0,0.00013698,2]
[382829090,1756746647498,-605.8,0.00013698,2]
[382829092,1756746647507,-480.0,0.00013698,2]
[382829094,1756746647516,-480.0,0.00013698,2]
[382829096,1756746647526,-480.0,0.00013698,2]
[382829098,1756746647535,-610.9,0.00013698,2]
[382829100,1756746647544,-431.83256565,0.00013698,2]
[382829102,1756746647554,-480.0,0.00013698,2]
[382829104,1756746647563,-480.0,0.00013698,2]
[382829106,1756746647572,-480.0,0.00013698,2]
[382829108,1756746647581,-480.0,0.00013698,2]
[382829110,1756746647591,-629.34,0.00013698,2]
[382829112,1756746647600,-495.8,0.00013698,2]
[382829114,1756746647609,-480.0,0.00013698,2]
[382829116,1756746647619,-480.0,0.00013698,2]
[382829118,1756746647628,-480.0,0.00013698,2]
[382829120,1756746647637,-379.32941426,0.00013698,2]
[382829122,1756746647646,-480.0,0.00013698,2]
[382829124,1756746647655,-480.0,0.00013698,2]
[382829126,1756746647664,-241.88800298,0.00013698,2]
[382829128,1756746647673,-480.0,0.00013698,2]
[382829130,1756746647683,-480.0,0.00013698,2]
[382829132,1756746647692,-480.0,0.00013698,2]
[382829134,1756746647701,-480.0,0.00013698,2]
[382829136,1756746647710,-480.0,0.00013698,2]
[382829138,1756746647720,-495.64,0.00013698,2]
[382829139,1756746647729,-480.0,0.00013698,2]
[382829141,1756746647738,-480.0,0.00013698,2]
[382829143,1756746647747,-480.0,0.00013698,2]
[382829145,1756746647757,-480.0,0.00013698,2]
[382829147,1756746647767,-480.0,0.00013698,2]
[382829149,1756746647776,-480.0,0.00013698,2]
[382829151,1756746647785,-480.0,0.00013698,2]
[382829153,1756746647794,-480.0,0.00013698,2]
[382829155,1756746647803,-480.0,0.00013698,2]
[382829158,1756746647813,-481.85415728,0.00013698,2]
[382829160,1756746647822,-480.0,0.00013698,2]
[382829162,1756746647831,-480.0,0.00013698,2]
[382829164,1756746647840,-480.0,0.00013698,2]
[382829166,1756746647850,-480.0,0.00013698,2]
[382829168,1756746647859,-480.0,0.00013698,2]
[382829169,1756746647868,-495.99,0.00013698,2]
[382829172,1756746647878,-480.0,0.00013698,2]
[382829173,1756746647888,-231.34557866,0.00013698,2]
[382829176,1756746647898,-480.0,0.00013698,2]
[382829178,1756746647907,-480.0,0.00013698,2]
[382829180,1756746647919,-480.0,0.00013698,2]
[382829181,1756746647931,-491.17609362,0.00013698,2]
[382829183,1756746647942,-480.0,0.00013698,2]
[382829185,1756746647951,-480.0,0.00013698,2]
[382829188,1756746647964,-480.0,0.00013698,2]
[382829190,1756746647974,-481.05796659,0.00013698,2]
[382829192,1756746647983,-480.0,0.00013698,2]
[382829194,1756746647993,-494.62,0.00013698,2]
[382829196,1756746648002,-480.0,0.00013698,2]
[382829198,1756746648012,-480.0,0.00013698,2]
[382829200,1756746648022,-480.0,0.00013698,2]
[382829202,1756746648031,-480.0,0.00013698,2]
[382829204,1756746648041,-480.0,0.00013698,2]
[382829206,1756746648050,-480.0,0.00013698,2]
[382829208,1756746648060,-480.0,0.00013698,2]
[382829210,1756746648069,-480.0,0.00013698,2]
[382829212,1756746648079,-480.0,0.00013698,2]
[382829214,1756746648088,-537.06,0.00013698,2]
[382829216,1756746648098,-480.0,0.00013698,2]
[382829218,1756746648107,-480.0,0.00013698,2]
[382829220,1756746648117,-480.0,0.00013698,2]
[382829222,1756746648127,-480.0,0.00013698,2]
[382829224,1756746648136,-1613.69,0.00013698,2]
[382829226,1756746648146,-496.78,0.00013698,2]
[382829228,1756746648155,-480.0,0.00013698,2]
[382829230,1756746648166,-463.70404932,0.00013698,2]
[382829232,1756746648176,-480.0,0.00013698,2]
[382829234,1756746648185,-480.0,0.00013698,2]
[382829236,1756746648196,-480.0,0.00013698,2]
[382829238,1756746648206,-480.0,0.00013698,2]
[382829240,1756746648216,-480.0,0.00013698,2]
[382829242,1756746648226,-480.0,0.00013698,2]
[382829244,1756746648235,-538.27,0.00013698,2]
[382829246,1756746648245,-482.15742243,0.00013698,2]
[382829248,1756746648254,-494.38,0.00013698,2]
[382829250,1756746648264,-480.0,0.00013698,2]
[382829252,1756746648273,-480.0,0.00013698,2]
[382829254,1756746648283,-480.0,0.00013698,2]
[382829256,1756746648292,-480.0,0.00013698,2]
[382829258,1756746648302,-480.93965172,0.00013698,2]
[382829260,1756746648312,-480.0,0.00013698,2]
[382829262,1756746648321,-417.37487682,0.00013698,2]
[382829264,1756746648331,-480.0,0.00013698,2]
[382829266,1756746648340,-480.0,0.00013698,2]
[382829268,1756746648349,-573.07,0.00013698,2]
[382829270,1756746648359,-480.0,0.00013698,2]
[382829272,1756746648369,-574.67,0.00013698,2]
[382829274,1756746648379,-480.0,0.00013698,2]
[382829276,1756746648388,-480.0,0.00013698,2]
[382829278,1756746648398,-480.0,0.00013698,2]
[382829280,1756746648407,-480.0,0.00013698,2]
[382829282,1756746648417,-480.0,0.00013698,2]
[382829283,1756746648426,-480.0,0.00013698,2]
[382829285,1756746648436,-480.0,0.00013698,2]
[382829288,1756746648447,-324.61271457,0.00013698,2]
[382829289,1756746648456,-482.99127915,0.00013698,2]
[382829292,1756746648466,-480.0,0.00013698,2]
[382829294,1756746648476,-480.0,0.00013698,2]
[382829296,1756746648486,-480.0,0.00013698,2]
[382829298,1756746648496,-480.0,0.00013698,2]
[382829300,1756746648506,-480.0,0.00013698,2]
[382829302,1756746648515,-583.13,0.00013698,2]
[382829304,1756746648527,-480.0,0.00013698,2]
[382829306,1756746648536,-480.0,0.00013698,2]
[382829307,1756746648545,-580.2,0.00013698,2]
[382829308,1756746648554,-480.0,0.00013698,2]
[382829309,1756746648563,-480.0,0.00013698,2]
[382829310,1756746648573,-480.0,0.00013698,2]
[382829311,1756746648582,-500.0,0.00013698,2]
[382829312,1756746648592,-482.78804004,0.00013698,2]
[382829313,1756746648602,-480.0,0.00013698,2]
[382829314,1756746648612,-480.0,0.00013698,2]
[382829315,1756746648622,-480.0,0.00013698,2]
[382829316,1756746648632,-480.0,0.00013698,2]
[382829317,1756746648641,-480.0,0.00013698,2]
[382829318,1756746648651,-480.0,0.00013698,2]
[382829320,1756746648661,-483.81858803,0.00013698,2]
[382829321,1756746648671,-507.62,0.00013698,2]
[382829322,1756746648681,-480.0,0.00013698,2]
[382829324,1756746648692,-480.0,0.00013698,2]
[382829325,1756746648702,-480.0,0.00013698,2]
[382829327,1756746648712,-480.0,0.00013698,2]
[382829329,1756746648726,-499.9981671,0.00013698,2]
[382829331,1756746648736,-480.0,0.00013698,2]
[382829333,1756746648746,-480.0,0.00013698,2]
[382829335,1756746648756,-480.0,0.00013698,2]
[382829337,1756746648765,-480.0,0.00013698,2]
[382829339,1756746648775,-480.0,0.00013698,2]
[382829341,1756746648785,-480.0,0.00013698,2]
[382829343,1756746648795,-1000.0,0.00013698,2]
[382829345,1756746648804,-480.0,0.00013698,2]
[382829347,1756746648813,-480.0,0.00013698,2]
[382829349,1756746648823,-480.0,0.00013698,2]
[382829351,1756746648833,-480.0,0.00013698,2]
[382829353,1756746648842,-480.0,0.00013698,2]
[382829355,1756746648852,-480.0,0.00013698,2]
[382829357,1756746648862,-480.0,0.00013698,2]
[382829359,1756746648873,-480.0,0.00013698,2]
[382829361,1756746648883,-480.0,0.00013698,2]